bitfinex/quotes_ETHUSD_20250802
["timestamp","ask_amount","ask_price","bid_price","bid_amount"]
[1754154940230,55.45678519,3482.9,3482.8,0.002]
[1754154941042,55.45678519,3482.9,3481.4,0.92]
[1754154941043,3.55,3482.8,3481.4,0.92]
[1754154941273,30.0,3481.4,3481.0,0.002]
[1754154941435,6.26071598,3482.7,3481.1,0.92]
[1754154941436,33.55,3481.2,3481.1,0.92]
[1754154941750,5.002,3481.2,3481.1,0.92]
[1754154942637,8.002,3481.2,3481.1,0.92]
[1754154943834,3.55,3481.1,3481.0,0.002]
[1754154944039,33.55,3481.1,3481.0,0.002]
[1754154944441,33.63998799,3481.1,3481.0,0.002]
[1754154944640,33.63998799,3481.1,3481.0,0.922]
[1754154944857,30.63998799,3481.1,3481.0,0.922]
[1754154945239,36.50823506,3481.1,3481.0,0.002]
[1754154945641,36.96353506,3481.1,3481.0,0.002]
[1754154945865,37.40133506,3481.1,3481.0,0.002]
[1754154946226,36.50823506,3481.1,3481.0,0.002]
[1754154948253,36.50823506,3481.1,3481.0,0.922]
[1754154949774,33.63998799,3481.1,3481.0,0.922]
[1754154949978,33.08998799,3481.1,3481.0,0.922]
[1754154950475,33.63998799,3481.1,3481.0,0.922]
[1754154951677,33.63998799,3481.1,3481.0,0.002]
[1754154952346,33.63998799,3481.1,3481.0,0.9101]
[1754154953556,36.50823506,3481.1,3481.0,0.002]
[1754154953759,36.99033506,3481.1,3481.0,0.002]
[1754154954127,36.50823506,3481.1,3481.0,0.002]
[1754154954490,6.50823506,3481.1,3481.0,0.002]
[1754154954660,33.63998799,3481.1,3481.0,0.002]
[1754154954854,33.63998799,3481.1,3481.0,0.9101]
[1754154955368,33.63998799,3481.1,3481.0,0.4545]
[1754154955967,33.63998799,3481.1,3481.0,0.002]
[1754154956145,33.92768799,3481.1,3481.0,0.002]
[1754154956340,36.79593506,3481.1,3481.0,0.002]
[1754154956946,37.73063506,3481.1,3481.0,0.002]
[1754154957893,36.79593506,3481.1,3481.0,0.002]
[1754154959107,37.27803506,3481.1,3481.0,0.002]
[1754154959370,37.73063506,3481.1,3481.0,0.002]
[1754154959980,37.27803506,3481.1,3481.0,0.002]
[1754154960190,36.99033506,3481.1,3481.0,0.002]
[1754154960359,38.10630636,3481.1,3481.0,0.002]
[1754154960559,6.50823506,3481.1,3481.0,0.002]
[1754154960761,36.50823506,3481.1,3481.0,0.002]
[1754154961174,36.99033506,3481.1,3481.0,0.002]
[1754154961510,44.29409667,3481.1,3481.0,0.002]
[1754154961801,43.91842537,3481.1,3481.0,0.002]
[1754154962113,47.32209667,3481.1,3481.0,0.002]
[1754154962312,40.02546945,3480.7,3480.6,0.002]
[1754154962600,48.2538496,3480.7,3480.6,0.002]
[1754154962925,52.06153491,3480.7,3480.6,0.002]
[1754154963226,66.9008012,3480.7,3480.6,0.002]
[1754154963579,63.94019459,3480.7,3480.6,0.002]
[1754154963796,66.44028082,3480.7,3480.6,0.002]
[1754154964002,69.31326613,3480.7,3480.6,0.002]
[1754154964195,0.55,3480.2,3480.1,0.002]
[1754154964398,38.4084939,3480.2,3480.1,0.002]
[1754154964586,39.19863659,3480.2,3480.1,0.002]
[1754154964782,40.13333659,3480.2,3480.1,0.002]
[1754154965698,56.34740597,3480.2,3480.1,0.002]
[1754154965898,26.34740597,3480.2,3480.1,0.002]
[1754154966074,26.56440033,3480.2,3480.1,0.002]
[1754154966276,56.56440033,3480.2,3480.1,0.002]
[1754154966587,53.69100225,3480.2,3480.1,0.002]
[1754154966805,56.56440033,3480.2,3480.1,0.002]
[1754154967319,3.55,3479.4,3478.6,0.9081]
[1754154967521,0.55,3479.0,3478.6,0.9081]
[1754154967693,3.55,3478.8,3478.7,0.9081]
[1754154967894,3.64004159,3478.8,3478.7,0.9081]
[1754154968624,3.64004159,3478.8,3477.0,0.002]
[1754154968625,3.55,3478.4,3478.1,6.47546945]
[1754154968926,3.55,3478.2,3478.0,6.47546945]
[1754154969212,8.012,3478.1,3478.0,6.47546945]
[1754154969516,8.011,3478.1,3478.0,6.47546945]
[1754154969720,8.011,3478.1,3478.0,7.38356945]
[1754154970220,8.1010689,3478.1,3478.0,0.9081]
[1754154970539,3.55,3478.0,3477.0,6.47746945]
[1754154970833,8.011,3477.9,3477.8,0.9081]
[1754154970993,3.55,3477.8,3477.4,6.47746945]
[1754154971196,4.462,3477.7,3477.4,6.47746945]
[1754154971394,8.012,3477.7,3477.6,0.002]
[1754154971793,8.012,3477.7,3477.6,0.9101]
[1754154972707,3.55,3477.7,3477.6,7.38556945]
[1754154972884,8.011,3477.7,3477.6,8.1243264]
[1754154973390,5.011,3477.7,3477.6,8.1243264]
[1754154973812,5.011,3477.7,3477.6,1.64885695]
[1754154974011,5.011,3477.7,3477.6,7.38556945]
[1754154975580,0.55,3477.7,3477.6,7.38556945]
[1754154975828,5.009,3477.7,3477.6,7.38556945]
[1754154976136,4.459,3477.7,3477.6,7.38556945]
[1754154976282,0.55,3478.1,3477.6,7.38556945]
[1754154976483,30.0,3478.8,3478.1,6.47546945]
[1754154976743,0.0900581,3478.7,3478.2,0.9081]
[1754154976946,0.0900581,3478.8,3478.7,6.47546945]
[1754154977084,0.55,3478.7,3478.5,6.47546945]
[1754154977284,7.5500581,3478.6,3478.5,6.47546945]
[1754154977836,8.01,3478.6,3478.5,7.38356945]
[1754154980749,4.46,3478.6,3478.5,7.38356945]
[1754154981033,4.46,3478.6,3478.5,8.1219264]
[1754154981837,4.456,3478.8,3478.5,8.1219264]
[1754154982039,7.456,3478.8,3478.7,6.47546945]
[1754154982203,0.55,3479.5,3478.7,7.37816945]
[1754154982403,0.55,3479.5,3477.9,4.456]
[1754154982404,7.54503586,3479.4,3479.3,6.47546945]
[1754154982603,3.09003586,3479.4,3479.3,7.37816945]
[1754154982806,4.54503586,3479.4,3479.3,7.37816945]
[1754154983043,4.54503372,3479.4,3478.9,6.47546945]
[1754154983214,4.54503372,3479.4,3478.7,0.4518]
[1754154983215,0.55,3479.3,3479.2,6.47546945]
[1754154983531,3.55,3479.3,3479.2,6.47546945]
[1754154984114,3.55,3479.3,3479.2,7.37816945]
[1754154984333,4.458,3479.3,3479.2,0.9027]
[1754154985420,4.457,3479.3,3479.2,0.9027]
[1754154986312,4.54703442,3479.3,3479.2,0.9027]
[1754154986810,3.55,3479.2,3478.7,9.45786253]
[1754154987159,0.55,3479.0,3478.8,0.9027]
[1754154987357,0.55,3479.0,3478.9,0.4518]
[1754154987654,0.55,3479.0,3478.9,0.9027]
[1754154987853,4.455,3479.1,3478.9,1.93875625]
[1754154988280,7.455,3479.1,3479.0,0.9027]
[1754154988745,4.454,3479.2,3479.0,0.9027]
[1754154988932,4.452,3479.2,3478.9,1.03605625]
[1754154989126,7.452,3479.2,3479.1,0.9027]
[1754154989322,0.09003057,3479.2,3479.1,1.09945018]
[1754154989574,4.452,3479.2,3479.1,1.12819324]
[1754154989783,4.452,3479.2,3479.1,1.09945018]
[1754154990272,4.453,3479.3,3479.1,1.09945018]
[1754154990472,3.0,3479.4,3479.2,0.9027]
[1754154990679,4.452,3479.5,3479.3,0.9027]
[1754154990968,7.452,3479.5,3479.4,0.9027]
[1754154991172,7.5420251,3479.5,3479.4,0.9027]
[1754154991370,3.0,3479.5,3479.4,0.9027]
[1754154991699,4.452,3479.7,3479.4,1.96011132]
[1754154991873,0.09002043,3479.6,3479.4,1.05741132]
[1754154992031,4.452,3479.8,3479.5,1.95428317]
[1754154992380,7.05529327,3480.9,3479.7,9.45786253]
[1754154992578,4.54200753,3480.8,3479.8,0.02873728]
[1754154992732,0.09000753,3480.7,3479.8,0.93143728]
[1754154993068,3.09000753,3480.7,3479.9,0.9027]
[1754154993241,0.001,3480.5,3480.0,0.48053563]
[1754154993443,4.452,3480.4,3480.0,0.9027]
[1754154993645,0.09000753,3480.3,3480.1,0.9027]
[1754154993848,4.451,3480.4,3479.9,1.03605625]
[1754154994052,4.451,3480.4,3480.0,2.21792451]
[1754154994245,4.451,3480.4,3480.1,0.9027]
[1754154994678,4.451,3480.4,3480.2,0.9027]
[1754154994845,0.001,3480.5,3480.3,0.9027]
[1754154995048,0.001,3480.5,3480.3,1.93875625]
[1754154995251,0.001,3480.5,3480.4,0.9027]
[1754154996061,0.001,3480.5,3480.1,0.9027]
[1754154996384,0.001,3480.5,3480.2,0.9027]
[1754154996754,3.55,3480.3,3479.4,0.9027]
[1754154996965,0.55,3480.1,3479.4,0.9027]
[1754154997162,0.55,3480.1,3478.9,4.48074471]
[1754154997163,4.45,3480.0,3479.5,9.90876253]
[1754154997367,0.55,3479.9,3479.6,0.93143893]
[1754154997587,0.55,3479.9,3479.7,0.9027]
[1754154997787,4.45,3480.0,3479.8,1.93875625]
[1754154998196,5.0,3480.0,3479.9,0.9027]
[1754154998379,0.55,3480.0,3479.9,0.9027]
[1754154998979,4.45,3480.3,3479.9,0.9027]
[1754154999157,5.0,3480.3,3480.2,9.45786253]
[1754154999360,5.0,3480.3,3480.2,10.36056253]
[1754154999710,0.001,3480.5,3480.2,11.39661878]
[1754154999885,0.001,3480.5,3480.3,0.9027]
[1754155000252,0.001,3480.5,3480.2,1.03605625]
[1754155000253,0.001,3480.5,3480.4,0.9027]
[1754155002986,0.001,3481.1,3480.4,0.9027]
[1754155003314,0.001,3481.1,3481.0,9.45786253]
[1754155003678,0.001,3481.1,3481.0,10.36056253]
[1754155004089,0.001,3483.6,3481.0,10.36056253]
[1754155004090,4.446,3481.9,3481.0,10.36056253]
[1754155004291,3.0,3481.8,3481.6,9.45786253]
[1754155004490,3.0,3481.8,3481.6,10.36056253]
[1754155004722,4.446,3481.9,3481.7,0.9027]
[1754155004891,4.446,3481.9,3481.7,7.38279557]
[1754155005090,3.0,3481.8,3481.7,7.38279557]
[1754155005318,0.4845,3482.2,3481.7,6.48009557]
[1754155005622,0.4845,3482.1,3481.7,6.48009557]
[1754155006181,0.4845,3482.1,3481.7,7.38279557]
[1754155006605,0.55,3482.0,3481.7,7.38279557]
[1754155006919,0.55,3482.0,3481.7,0.9027]
[1754155008727,0.55,3482.1,3481.7,0.53537]
[1754155008907,4.449,3482.2,3481.8,10.37472854]
[1754155009226,4.447,3482.3,3481.9,0.9027]
[1754155009427,4.447,3482.3,3482.0,0.9027]
[1754155009610,4.447,3482.3,3482.1,0.9027]
[1754155010318,4.447,3482.3,3482.0,1.08813778]
[1754155010319,7.997,3482.3,3482.0,1.08813778]
[1754155010528,4.5059,3482.2,3481.1,0.9027]
[1754155010735,0.55,3482.0,3480.9,0.4509]
[1754155010935,0.55,3481.8,3480.9,0.4509]
[1754155011300,0.55,3481.6,3481.0,0.53507]
[1754155011614,1.0345,3481.6,3481.0,9.97837777]
[1754155012212,0.55,3481.4,3481.0,9.97837777]
[1754155012454,1.0179,3481.4,3481.0,9.97837777]
[1754155012740,1.0179,3481.4,3481.0,10.44867777]
[1754155012926,1.0179,3481.4,3481.0,10.93617777]
[1754155013753,0.4679,3482.2,3481.1,2.49611778]
[1754155013926,4.446,3481.9,3481.6,9.44330777]
[1754155014297,4.446,3481.9,3481.6,10.40110777]
[1754155014544,0.55,3481.8,3481.6,10.40110777]
[1754155015542,0.55,3481.8,3481.6,9.91360777]
[1754155015732,0.55,3481.8,3481.3,0.4875]
[1754155015933,0.55,3481.8,3481.4,0.9578]
[1754155016321,0.55,3481.8,3481.5,0.4703]
[1754155016749,1.0179,3481.8,3481.4,0.4875]
[1754155017048,0.55,3481.6,3481.2,4.445]
[1754155017228,0.55,3481.8,3481.1,0.002]
[1754155017426,0.55,3481.4,3481.1,0.002]
[1754155017830,0.4679,3481.4,3481.1,0.002]
[1754155018962,0.4679,3481.6,3481.1,10.40310777]
[1754155019351,0.55,3481.4,3481.1,10.40310777]
[1754155019551,0.55,3481.4,3481.1,9.91560777]
[1754155019758,0.4679,3481.4,3481.1,9.44530777]
[1754155020438,0.55,3481.8,3481.1,9.44530777]
[1754155020770,0.55,3481.6,3481.1,10.40310777]
[1754155020928,0.55,3481.8,3481.1,10.40310777]
[1754155021269,0.55,3481.4,3481.1,10.40310777]
[1754155021425,1.0179,3481.8,3481.1,10.48561855]
[1754155021631,1.0179,3481.8,3481.1,11.44341855]
[1754155022281,0.55,3481.6,3481.1,11.44341855]
[1754155022462,0.4679,3481.5,3481.1,11.44341855]
[1754155022640,0.55,3481.4,3481.1,11.44341855]
[1754155022973,0.55,3481.4,3481.1,10.97311855]
[1754155023271,0.55,3481.6,3481.2,2.24003435]
[1754155023572,0.55,3481.6,3481.3,0.9578]
[1754155024876,0.4679,3481.6,3481.1,9.44530777]
[1754155025071,0.4679,3481.6,3481.1,10.40310777]
[1754155026145,0.9386,3481.6,3481.1,0.002]
[1754155026476,0.55,3481.4,3481.1,0.002]
[1754155026843,30.55,3481.7,3481.2,0.9578]
[1754155027038,0.08996742,3481.6,3481.1,1.51473733]
[1754155027378,0.08996742,3481.6,3481.2,0.9578]
[1754155027878,0.08996742,3481.6,3481.3,0.9578]
[1754155028476,0.55,3481.4,3481.1,0.002]
[1754155028682,0.08997434,3481.3,3481.1,0.002]
[1754155028843,1.02857434,3481.3,3481.1,0.002]
[1754155029038,0.56067434,3481.2,3481.1,0.002]
[1754155029276,0.55787434,3481.2,3481.1,0.002]
[1754155030094,0.08997434,3481.2,3481.1,0.002]
[1754155030296,0.08997434,3481.3,3481.1,0.002]
[1754155030501,0.4679,3481.2,3481.1,0.002]
[1754155030810,1.02857434,3481.2,3481.1,0.002]
[1754155031028,0.55787434,3481.2,3481.1,0.002]
[1754155033709,1.57857434,3481.2,3481.1,0.002]
[1754155034880,0.63997434,3481.2,3481.1,0.002]
[1754155035412,0.63997434,3481.2,3481.1,1.90433078]
[1754155035715,0.4679,3481.9,3481.1,1.90433078]
[1754155035716,4.435,3481.9,3481.1,1.90433078]
[1754155035879,0.08996379,3481.8,3481.7,9.44330777]
[1754155036083,0.09096379,3481.8,3481.7,10.40110777]
[1754155036392,0.64096379,3481.8,3481.7,10.40110777]
[1754155036936,0.09096379,3481.8,3481.7,10.40110777]
[1754155037073,0.09096379,3481.8,3481.7,11.44121855]
[1754155038306,0.001,3481.8,3481.7,11.44121855]
[1754155038919,0.863688,3482.9,3481.7,11.44121855]
[1754155039118,0.001,3483.2,3482.4,9.44330777]
[1754155039317,4.435,3482.9,3482.5,0.36661857]
[1754155039520,0.551,3482.8,3482.5,1.29570357]
[1754155039811,0.001,3482.8,3482.6,0.9578]
[1754155040123,0.001,3482.8,3482.7,0.9578]
[1754155040286,0.551,3482.8,3482.7,0.9578]
[1754155041110,0.001,3482.8,3482.7,1.90233078]
[1754155041610,0.001,3482.8,3482.7,1.93104413]
[1754155041810,0.001,3483.2,3482.7,1.90233078]
[1754155042014,0.001,3483.2,3482.8,5.3984]
[1754155042214,0.001,3483.2,3482.9,10.07760085]
[1754155042509,0.001,3483.2,3482.9,11.04100085]
[1754155042717,0.001,3483.2,3483.0,0.9634]
[1754155043889,0.55,3483.0,3482.7,5.37953078]
[1754155044208,1.0475,3483.0,3482.7,0.94453078]
[1754155044454,0.55,3482.8,3482.1,4.435]
[1754155044658,1.0475,3482.8,3482.1,4.435]
[1754155044821,1.0475,3482.8,3482.0,0.4969]
[1754155044822,0.55,3482.8,3482.0,0.4969]
[1754155045027,0.4975,3482.7,3481.9,4.9005]
[1754155045256,0.55,3482.5,3482.0,0.53974]
[1754155045447,0.55,3482.3,3482.0,0.53974]
[1754155045824,4.434,3482.6,3482.1,10.40670777]
[1754155045825,0.55,3482.5,3482.1,10.40670777]
[1754155046024,0.55,3482.5,3482.2,2.50144478]
[1754155046460,0.55,3482.5,3482.3,0.9634]
[1754155048564,0.55,3482.5,3482.2,1.53804478]
[1754155048756,1.0475,3482.5,3482.2,1.53804478]
[1754155049261,0.55,3482.5,3482.2,1.53804478]
[1754155049449,0.55,3482.5,3482.2,2.00454478]
[1754155049642,0.55,3482.5,3482.2,2.50144478]
[1754155050869,0.55,3482.5,3482.2,1.53804478]
[1754155051037,4.434,3482.6,3482.2,9.44330777]
[1754155051240,0.55,3482.5,3482.3,0.9634]
[1754155052155,4.434,3482.6,3482.2,9.44330777]
[1754155052374,4.434,3482.9,3482.4,0.9634]
[1754155052581,4.434,3482.9,3482.5,0.9634]
[1754155052869,0.55,3482.8,3482.5,0.4665]
[1754155053642,0.55,3482.9,3482.4,1.04067078]
[1754155053959,0.4975,3482.8,3482.4,1.04067078]
[1754155054573,0.55,3482.6,3482.2,9.44330777]
[1754155054749,0.4975,3482.5,3482.2,9.44330777]
[1754155055875,0.4975,3482.4,3481.9,4.9005]
[1754155056044,0.4975,3482.3,3481.9,0.4665]
[1754155056239,0.4975,3482.2,3481.7,9.94020777]
[1754155056551,0.55,3482.0,3481.7,14.91797855]
[1754155056766,0.55,3482.0,3481.7,10.48397855]
[1754155057456,0.55,3481.8,3481.2,9.44330777]
[1754155057657,0.55,3481.6,3481.2,4.433]
[1754155057849,0.55,3481.6,3481.1,0.4989]
[1754155058078,0.4975,3481.5,3481.1,0.4989]
[1754155058244,0.4975,3481.5,3481.2,0.53984]
[1754155060040,3.4472,3481.9,3481.1,0.002]
[1754155060041,0.55,3481.8,3481.1,0.002]
[1754155060240,0.55,3481.8,3481.2,0.9634]
[1754155060676,0.55,3481.6,3481.1,0.002]
[1754155061180,0.55,3481.8,3481.1,0.002]
[1754155061479,0.55,3481.4,3481.1,0.002]
[1754155061643,0.55,3481.4,3481.1,1.48627078]
[1754155062782,0.4975,3481.4,3481.1,1.48627078]
[1754155063789,0.55,3481.8,3481.1,1.48627078]
[1754155063991,0.55,3481.8,3481.6,9.44330777]
[1754155065059,0.55,3481.8,3481.7,0.9634]
[1754155065283,0.55,3481.9,3481.7,0.9634]
[1754155065593,0.4975,3482.4,3481.8,0.9634]
[1754155065798,4.434,3482.3,3482.1,9.44330777]
[1754155065964,4.434,3482.3,3482.1,10.40670777]
[1754155066371,4.434,3482.3,3482.1,9.90980777]
[1754155066682,0.55,3482.2,3482.1,9.44330777]
[1754155067072,0.55,3482.2,3482.1,9.90980777]
[1754155067300,0.55,3482.2,3482.1,10.40670777]
[1754155068884,0.001,3482.6,3482.1,11.68858212]
[1754155069063,0.001,3482.6,3482.2,0.9634]
[1754155069260,0.001,3482.6,3482.2,5.3974]
[1754155069592,0.001,3482.6,3482.3,0.9634]
[1754155069798,0.001,3482.6,3482.3,2.00407078]
[1754155070100,0.001,3482.6,3482.4,0.9634]
[1754155070673,0.001,3482.6,3482.5,0.9634]
[1754155071911,0.001,3482.6,3482.5,0.992115]
[1754155072509,0.001,3482.6,3482.5,0.9634]
[1754155072799,0.001,3483.0,3482.9,9.44330777]
[1754155073180,0.001,3483.0,3482.9,10.35070777]
[1754155079523,0.001,3483.0,3482.9,14.78270777]
[1754155080325,0.001,3483.0,3482.9,13.87530777]
[1754155080708,0.001,3483.0,3482.9,14.30860777]
[1754155080920,0.001,3483.0,3482.9,15.41790346]
[1754155084868,0.001,3483.0,3482.9,5.06619569]
[1754155085031,0.001,3483.0,3482.9,4.431]
[1754155086340,0.55,3482.9,3480.6,0.13808182]
[1754155086540,0.9417,3482.8,3481.8,4.431]
[1754155086742,0.4955,3482.7,3481.8,4.431]
[1754155086971,0.4955,3482.7,3481.9,1.47837078]
[1754155087141,0.4955,3482.7,3481.9,1.95247078]
[1754155087338,0.4955,3482.7,3482.0,4.431]
[1754155087542,0.001,3483.0,3482.2,9.44330777]
[1754155087775,0.001,3483.0,3482.3,4.431]
[1754155087978,0.4955,3482.9,3482.2,9.44330777]
[1754155088156,0.8089,3482.8,3482.3,4.431]
[1754155088361,0.7544,3482.7,3482.4,4.431]
[1754155088678,0.4955,3482.6,3482.4,4.431]
[1754155090281,0.55,3482.4,3481.7,9.44530777]
[1754155090480,0.4955,3482.3,3481.8,5.37553078]
[1754155090671,0.55,3482.4,3481.8,5.37553078]
[1754155090868,0.4955,3482.2,3481.8,0.94453078]
[1754155091167,0.55,3482.5,3481.9,4.8643]
[1754155091370,0.55,3482.5,3482.0,1.40673347]
[1754155091552,0.55,3482.3,3482.0,5.83773347]
[1754155091752,1.0455,3482.3,3482.0,5.80901435]
[1754155092564,0.55,3482.1,3481.8,4.431]
[1754155092764,0.4955,3482.0,3481.8,4.431]
[1754155093083,0.4955,3481.9,3481.8,4.431]
[1754155093246,0.4955,3481.9,3481.7,0.002]
[1754155094064,0.57975231,3483.0,3481.7,0.002]
[1754155094262,0.55,3482.6,3481.7,0.002]
[1754155094882,0.55,3482.4,3481.7,0.002]
[1754155095249,3.55,3482.6,3481.7,0.002]
[1754155095449,0.9417,3482.3,3481.7,0.002]
[1754155095876,0.55,3482.1,3481.7,0.002]
[1754155096290,3.4955,3482.7,3481.8,0.9074]
[1754155096453,3.4955,3482.7,3481.8,0.4333]
[1754155096652,1.0455,3482.6,3481.9,0.4741]
[1754155096853,1.0455,3482.6,3482.1,9.44330777]
[1754155097058,0.4965,3483.0,3482.2,0.93611747]
[1754155097254,0.4965,3483.0,3482.2,1.48104252]
[1754155097455,0.55,3482.9,3482.2,1.48104252]
[1754155097657,1.0455,3482.9,3482.2,1.48104252]
[1754155098699,1.0455,3482.9,3482.2,1.50975999]
[1754155098866,1.0455,3482.9,3482.3,0.9074]
[1754155099062,1.0455,3482.9,3482.4,0.02871582]
[1754155099262,1.0455,3482.9,3482.5,0.9074]
[1754155099692,0.001,3483.0,3482.5,0.9074]
[1754155100008,0.001,3483.0,3482.6,0.9074]
[1754155101512,0.001,3483.0,3482.4,0.02871582]
[1754155101513,0.4955,3482.9,3482.4,0.02871582]
[1754155101694,0.4955,3482.9,3482.4,0.9074]
[1754155102204,0.55,3482.7,3482.1,4.433]
[1754155102503,0.55,3482.7,3482.2,0.53444]
[1754155102811,0.551,3483.0,3482.3,0.94011665]
[1754155102967,0.551,3483.0,3482.4,0.9114]
[1754155102968,0.001,3483.0,3482.4,0.9114]
[1754155103471,0.001,3483.0,3482.3,0.02871665]
[1754155103684,0.001,3483.0,3482.4,0.9114]
[1754155103982,0.001,3483.0,3482.4,2.44361478]
[1754155104296,0.5,3483.0,3482.4,2.44361478]
[1754155104472,0.5,3483.0,3482.4,0.9114]
[1754155105609,0.5,3483.0,3482.4,0.4612]
[1754155105803,0.55,3482.9,3482.2,4.8812]
[1754155106111,0.55,3482.7,3482.2,4.431]
[1754155106273,1.049,3482.7,3482.2,5.3424]
[1754155106467,1.049,3482.7,3482.3,0.4612]
[1754155106675,1.049,3482.7,3482.3,0.9114]
[1754155107037,0.551,3483.0,3482.4,0.9114]
[1754155107372,0.001,3483.0,3482.5,0.4502]
[1754155107601,0.001,3483.0,3482.6,0.4612]
[1754155108127,0.001,3483.0,3482.7,0.94011335]
[1754155108345,0.001,3483.0,3482.7,0.9114]
[1754155109004,0.001,3483.0,3482.8,0.9114]
[1754155109510,0.001,3483.0,3482.8,0.8614]
[1754155110787,0.001,3483.0,3482.9,0.4612]
[1754155111706,0.001,3483.0,3482.9,0.9114]
[1754155113813,0.001,3483.0,3482.9,1.75517435]
[1754155113981,0.001,3483.0,3482.9,1.78388605]
[1754155114310,0.001,3483.0,3482.9,6.21388605]
[1754155114521,0.001,3483.0,3482.9,6.18517435]
[1754155116312,0.001,3483.2,3482.9,6.18517435]
[1754155116608,0.001,3483.2,3483.1,9.44330777]
[1754155117216,0.001,3483.2,3483.1,10.35470777]
[1754155118781,0.001,3483.2,3483.1,14.78370777]
[1754155120814,0.001,3483.2,3483.1,11.81301426]
[1754155121221,0.001,3483.2,3483.1,11.81201426]
[1754155121516,0.001,3483.2,3483.1,12.6722676]
[1754155128603,0.001,3483.4,3483.1,12.6722676]
[1754155128791,0.001,3483.4,3483.2,0.02870923]
[1754155128988,0.001,3483.4,3483.3,4.427]
[1754155129394,0.001,3483.4,3483.3,5.3384]
[1754155129708,0.001,3483.4,3483.3,6.18217435]
[1754155131690,0.001,3484.0,3483.3,6.18217435]
[1754155132021,0.001,3484.0,3483.9,6.47261426]
[1754155132222,0.001,3484.0,3483.9,10.89961426]
[1754155134298,0.4621,3484.0,3483.9,6.47261426]
[1754155134509,0.4621,3484.0,3483.9,10.89861426]
[1754155137030,0.9093,3484.0,3483.9,4.426]
[1754155137625,0.9093,3484.0,3483.5,6.47261426]
[1754155137822,0.9083,3483.9,3483.2,6.47261426]
[1754155138030,0.001,3484.0,3483.1,4.426]
[1754155138031,1.4583,3483.8,3483.1,4.426]
[1754155138323,0.9083,3483.7,3483.1,5.51586143]
[1754155138524,0.9083,3483.6,3483.1,4.426]
[1754155138733,0.551,3484.0,3483.1,4.426]
[1754155138734,0.9083,3483.5,3483.1,4.426]
[1754155138904,0.001,3484.0,3483.1,4.426]
[1754155139104,0.9083,3483.4,3483.1,4.426]
[1754155139433,0.9083,3483.3,3483.1,4.426]
[1754155139729,0.4611,3483.2,3483.1,4.426]
[1754155140040,0.4611,3483.2,3482.4,0.002]
[1754155140192,0.9083,3483.2,3482.6,6.47261426]
[1754155140393,0.9083,3483.2,3482.7,4.425]
[1754155140613,0.4611,3483.1,3482.9,6.47261426]
[1754155140817,0.4611,3483.0,3482.9,10.89761426]
[1754155141013,0.001,3484.0,3482.9,10.89761426]
[1754155141217,0.55,3483.8,3483.3,6.47261426]
[1754155141403,1.0111,3483.7,3483.6,6.47261426]
[1754155141747,1.0111,3483.7,3483.3,4.426]
[1754155141748,1.4583,3483.7,3483.3,10.89861426]
[1754155141891,0.9083,3483.6,3483.3,10.89761426]
[1754155142232,0.4611,3483.5,3483.3,10.89761426]
[1754155142542,0.4611,3483.5,3483.4,6.47261426]
[1754155142842,0.4611,3483.5,3483.3,5.60813143]
[1754155144244,0.4611,3483.8,3483.3,5.60813143]
[1754155144548,0.001,3483.5,3483.3,4.425]
[1754155144834,0.001,3483.5,3483.4,0.9337]
[1754155145729,0.001,3483.5,3483.4,0.96240758]
[1754155147812,0.001,3483.5,3483.4,0.9337]
[1754155148029,0.001,3483.5,3483.4,1.48389]
[1754155148594,0.001,3483.5,3483.4,1.51259758]
[1754155148795,0.001,3483.5,3483.4,5.93759758]
[1754155149034,0.001,3483.5,3483.4,1.48389]
[1754155149199,0.001,3483.5,3483.4,5.93759758]
[1754155149402,0.001,3483.5,3483.4,5.90889]
[1754155149734,0.001,3484.0,3483.4,5.90889]
[1754155150030,0.001,3484.0,3483.9,9.43298619]
[1754155150235,0.001,3484.0,3483.9,13.85798619]
[1754155150551,0.001,3484.0,3483.9,14.79168619]
[1754155151403,0.001,3484.0,3483.9,14.32238619]
[1754155151603,0.9093,3484.0,3483.2,4.24]
[1754155151807,0.001,3484.0,3483.3,4.8482]
[1754155152042,0.9083,3483.9,3483.3,4.8482]
[1754155152240,0.9083,3483.9,3483.3,4.8769084]
[1754155152445,0.4611,3483.8,3483.3,4.8769084]
[1754155152645,0.4472,3483.9,3483.3,4.8769084]
[1754155152939,0.4611,3483.7,3483.3,4.8769084]
[1754155153163,0.001,3484.0,3483.4,14.85600703]
[1754155153314,0.001,3484.0,3483.5,0.02870676]
[1754155153518,0.001,3484.0,3483.6,4.424]
[1754155153722,0.4611,3483.9,3483.7,1.04920429]
[1754155153914,0.4482,3484.0,3483.8,4.424]
[1754155154113,0.001,3484.0,3483.8,4.424]
[1754155154552,0.4611,3483.9,3483.8,4.424]
[1754155156346,0.001,3484.0,3483.8,4.424]
[1754155156518,0.001,3484.0,3483.8,4.8933]
[1754155156719,0.001,3484.0,3483.8,5.20782]
[1754155157341,0.001,3484.0,3483.8,5.23652428]
[1754155158129,0.001,3484.0,3483.8,4.76722428]
[1754155158334,0.4611,3483.9,3483.8,4.424]
[1754155159054,0.001,3484.0,3483.8,4.424]